Cogmind - Beta 10.1 @@@ ROGUE MODE // 2020.10.27 @ 17:53:44 Player: Atherys Result: Destroyed by Y-45 Defender with Beam Rifle Performance ------------- Evolutions (1) 500 Regions Visited (2) 400 Robots Destroyed (88) 440 Value Destroyed (2127) 2127 Prototype IDs (5) 100 Alien Tech Used (0) 0 Bonus (167) 167 TOTAL SCORE: 3734 Bonus ------- High Alert Combat Kills 167 Cogmind --------- Core Integrity 0/400 Matter 273/300 Energy 100/100 System Corruption 2% Temperature Cool (9) Movement Core (550) Ox10 Location -9/Materials Parts ------- > --- POWER (1) -------- (None) > --- PROPULSION (2) --- (None) > --- UTILITY (4) ------ Large Storage Unit Large Storage Unit > --- WEAPON (2) ------- (None) > --- INVENTORY (16) --- Hover Unit Improved Heat Sink High-capacity Matter Pod (200) Visual Processing Unit Improved Signal Interpreter ECM Suite Insulated Plating Recalibrator EM Pulse Gun Datajack Mining Laser Welding Torch Heavy Hammer Peak State ------------ > --- POWER ------------ Cooled Ion Engine > --- PROPULSION ------- Armored Treads Armored Treads > --- UTILITY ---------- Medium Storage Unit Medium Storage Unit Improved Sensor Array Improved Targeting Computer > --- WEAPON ----------- Flak Cannon Flak Cannon > --- INVENTORY -------- Light Nuclear Core High-capacity Matter Pod Structural Scanner Improved Signal Interpreter Terrain Scanner ECM Suite Insulated Plating EM Pulse Gun Improved EM Shotgun Mining Laser Welding Torch Heavy Hammer [Rating: 23] Favorites ----------- Power Cooled Ion Engine Engine Cooled Ion Engine Power Core Light Nuclear Core Propulsion Armored Treads Treads Armored Treads Leg Aluminum Leg Hover Unit Hover Unit Utility Medium Storage Unit Device Improved Sensor Array Storage Medium Storage Unit Processor Improved Targeting Computer Weapon Flak Cannon Energy Gun Improved EM Shotgun Energy Cannon Particle Cannon Ballistic Gun Assault Rifle Ballistic Cannon Flak Cannon Special Weapon Mining Laser Special Melee Weapon Datajack Build | -11 -10 -9 ------- Run | Scr Mat Mat Slots Evolved 2 | . . 2 Power . | . . . Propulsion . | . . . Utility 2 | . . 2 Weapon . | . . . Parts Attached 67 | 6 18 43 Power 7 | 1 3 3 Engine 6 | 1 3 2 Core 1 | . . 1 Reactor . | . . . Propulsion 14 | 2 8 4 Treads 2 | . . 2 Leg 11 | 2 8 1 Wheel . | . . . Hover 1 | . . 1 Flight . | . . . Utility 15 | 1 4 10 Device 7 | . 2 5 Storage 6 | 1 2 3 Processor 2 | . . 2 Hackware . | . . . Protection . | . . . Artifact . | . . . Weapon 31 | 2 3 26 Energy Gun 8 | . . 8 Energy Cannon 6 | . 2 4 Ballistic Gun 8 | 2 1 5 Ballistic Cannon 4 | . . 4 Launcher . | . . . Special Weapon 1 | . . 1 Impact Weapon . | . . . Slashing Weapon . | . . . Piercing Weapon . | . . . Special Melee Weapon 4 | . . 4 Unidentified Prototypes 3 | . . 3 Parts Lost 12 | . . 12 Power 1 | . . 1 Propulsion 3 | . . 3 Utility 3 | . . 3 Weapon 5 | . . 5 Highest Loss Streak 6 | . . 6 Average Slot Usage (%) 96 | . 97 95 Engine 9 | . 14 8 Core 1 | . . 2 Treads 12 | . . 16 Leg 8 | . 28 2 Device 10 | . 3 13 Storage 22 | . 22 22 Processor 5 | . . 7 Energy Gun 2 | . . 2 Energy Cannon 3 | . 3 3 Ballistic Gun 8 | . 24 2 Ballistic Cannon 7 | . . 10 Naked Turns . | . . . Heaviest Build 56 | 11 27 56 Greatest Support 40 | 20 20 40 Greatest Overweight (x) 15 | . 1 15 Average Overweight (x) . | . . . Largest Inventory Capacity 16 | 6 12 16 Average Capacity 12 | 5 9 14 Most Carried 16 | 4 12 16 Average Carried 11 | . 7 12 Final Capacity 16 | 6 12 16 Final Carried 13 | . 11 13 Class Distribution -------------------- 98% | Mutant Dominant Class ---------------- Mutant | -10/Materials Mutant | -9/Materials Resources | -11 -10 -9 ----------- Run | Scr Mat Mat Matter Collected 2441 | 227 648 1566 Remotely . | . . . Salvage Created 2355 | . 738 1617 Parts 171 | . 53 118 Haulers Intercepted 1 | . . 1 Recyclers Shooed 6 | . 3 3 Parts Field Recycled . | . . . Retrieved Matter . | . . . Parts Self-Destructed . | . . . Prevented . | . . . Kills | -11 -10 -9 ------- Run | Scr Mat Mat Combat Hostiles Destroyed 60 | . 14 46 Guns 16 | . 11 5 Cannons 44 | . 3 41 Classes Destroyed 13 | . 7 6 Worker 6 | . 1 5 Builder 3 | . 1 2 Tunneler 1 | . . 1 Hauler 1 | . . 1 Recycler 3 | . 1 2 Mechanic 1 | . . 1 Operator 5 | . 1 4 Watcher 8 | . 3 5 Swarmer 17 | . 3 14 Grunt 35 | . 11 24 Brawler 1 | . . 1 Duelist 1 | . . 1 Sentry 6 | . . 6 Best Kill Streak 11 | . 5 11 Combat Bots Only 6 | . 5 6 Max Kills in Single Turn 2 | . 2 2 Gunslinging 1 | . 1 . Exploded . | . . . Melee . | . . . Uniques/NPCs Destroyed . | . . . Combat | -11 -10 -9 -------- Run | Scr Mat Mat Damage Taken 2957 | . 542 2415 Core 629 | . 216 413 Absorbed by Shields . | . . . Core Remaining (%) 56 | 100 13 . Volleys Fired 220 | . 66 154 Largest 2 | . 2 2 Hottest 168 | . 120 168 Shots Fired 425 | . 132 293 Gun 157 | . 116 41 Cannon 266 | . 16 250 Launcher . | . . . Special 2 | . . 2 Kinetic 323 | . 116 207 Thermal 80 | . 16 64 Explosive . | . . . Electromagnetic 22 | . . 22 Robot Hit Streak 13 | . 11 13 Robot Miss Streak 12 | . 5 12 Penetration Max . | . . . Secondary Targets 1 | . 1 . Max Gunslinging Chain 1 | . 1 . Shots Hit Robots 293 | . 72 221 Core Hits 176 | . 34 142 Critical Hits 1 | . . 1 Critical Kills 1 | . . 1 Critical Parts Destroyed . | . . . Melee Attacks 15 | . . 15 Impact . | . . . Slashing . | . . . Piercing . | . . . Sneak Attacks 10 | . . 10 Combat Hostiles . | . . . Follow-up Attacks . | . . . Damage Inflicted 4418 | . 1103 3315 Guns 1131 | . 722 409 Cannons 2973 | . 106 2867 Explosions 284 | . 270 14 Melee . | . . . Ramming 30 | . 5 25 Kinetic 3256 | . 722 2534 Thermal 920 | . 376 544 Explosive . | . . . Electromagnetic 212 | . . 212 Impact . | . . . Slashing . | . . . Piercing . | . . . Highest Corruption 2 | . 1 2 Average Corruption 1 | . 1 2 Corruption Purged . | . . . Effects 29 | . 1 28 Message Errors 7 | . 1 6 Heat Flow Errors 2 | . . 2 Energy Discharges 7 | . . 7 Data Loss (minor) 7 | . . 7 Targeting Errors 6 | . . 6 Overload Shots . | . . . Overflow Damage 110 | . 99 11 Projectiles 11 | . . 11 Explosions 99 | . 99 . Melee . | . . . Knockbacks 39 | . . 39 Impact . | . . . Kinetic 37 | . . 37 Secondary 2 | . . 2 Self-Inflicted Damage 96 | . 90 6 Shots 2 | . 1 1 Rammed 5 | . 1 4 Targets Rammed 7 | . 2 5 Kicked 1 | . 1 . Crushed 1 | . . 1 Highest Temperature 382 | . 337 382 Average Temperature 85 | . 103 83 Received Heat Transfer 1071 | . 237 834 Effects 2 | . . 2 Interference 2 | . . 2 Siege Activations . | . . . Robots Corrupted . | . . . Combat Hostiles . | . . . Parts Fried . | . . . Impact Corruptions . | . . . Robots Melted . | . . . Combat Hostiles . | . . . Parts Melted 3 | . 1 2 Heat Transferred 1458 | . 372 1086 Parts Sabotaged . | . . . Parts Stolen . | . . . Parts Stripped . | . . . Power Chain Reactions 2 | . . 2 Missiles Intercepted . | . . . Alert | -11 -10 -9 ------- Run | Scr Mat Mat Peak Influence 785 | . 256 785 Initial 84 | . . 84 Average 372 | . 161 453 Maximum Alert Level 3 | . 1 3 Low Security (%) 21 | 100 50 9 Level 1 42 | . 49 41 Level 2 20 | . . 27 Level 3 15 | . . 21 Level 4 . | . . . Level 5 . | . . . High Security . | . . . Max Security . | . . . Squads Dispatched 11 | . 4 7 Investigation 4 | . 1 3 Extermination . | . . . Reinforcement 6 | . 3 3 Assault 1 | . . 1 Garrison . | . . . Intercept . | . . . Construction Impeded . | . . . Haulers Reinforced . | . . . Stealth | -11 -10 -9 --------- Run | Scr Mat Mat Distress Signals 8 | . 2 6 Communications Jammed . | . . . Distress Signals . | . . . Times Spotted 113 | . 31 82 Peak Tracking Total 5 | . 5 5 Tactical Retreats 5 | . . 5 Traps | -11 -10 -9 ------- Run | Scr Mat Mat Traps Triggered 3 | . . 3 Indirectly . | . . . Trap Hack Attempts . | . . . Triggered . | . . . Disarmed . | . . . Reprogrammed . | . . . Reused . | . . . Traps Extracted . | . . . Installed . | . . . Triggered 1 | . . 1 Machines | -11 -10 -9 ---------- Run | Scr Mat Mat Machines Disabled 9 | . 5 4 Max in Single Turn 5 | . 5 1 Machines Sabotaged . | . . . Garrisons Compromised . | . . . Overloaded Fab Kills . | . . . Fab Network Shutdowns . | . . . Hacking | -11 -10 -9 --------- Run | Scr Mat Mat Machines Accessed 9 | . 3 6 Terminals 6 | . 2 4 Fabricators . | . . . Repair Stations 1 | . . 1 Recycling Units 2 | . 1 1 Scanalyzers . | . . . Garrison Access . | . . . Total Hacks 21 | . 9 12 Successful 15 | . 7 8 Failed 6 | . 2 4 Catastrophic . | . . . Database Lockouts . | . . . Manual 5 | . . 5 Terminals 16 | . 7 9 Fabricators . | . . . Repair Stations 2 | . . 2 Recycling Units 3 | . 2 1 Scanalyzers . | . . . Garrison Access . | . . . Terminal Hacks 12 | . 5 7 Record 7 | . 3 4 Prototype ID Bank 1 | . 1 . Branch Access Points 1 | . . 1 Emergency Access Points 1 | . . 1 Dispatch Records 1 | . . 1 Zone Layout 1 | . 1 . Fabricator Hacks . | . . . Repair Station Hacks . | . . . Recycling Unit Hacks 3 | . 2 1 Recycle Component 1 | . 1 . Process 1 | . 1 . Report Inventory 1 | . . 1 Scanalyzer . | . . . Garrison Access Hacks . | . . . Unauthorized Hacks . | . . . Terminals . | . . . Fabricators . | . . . Repair Stations . | . . . Recycling Units . | . . . Scanalyzers . | . . . Garrison Access . | . . . Data Cores Recovered 1 | . . 1 Used 1 | . . 1 Hacking Detections 9 | . 3 6 Full Trace Events 1 | . 1 . Feedback Events 1 | . 1 . Corruption 1 | . 1 . Feedback Blocked . | . . . Robot Schematics Acquired . | . . . Robots Built . | . . . Matter . | . . . Time . | . . . Total Robot Build Rating . | . . . Part Schematics Acquired . | . . . Parts Built . | . . . Matter . | . . . Time . | . . . Total Part Build Rating . | . . . Parts Repaired . | . . . Time . | . . . Parts Recycled 1 | . 1 . Recycled Matter 328 | . 328 . Retrieved Matter . | . . . Retrieved Components . | . . . Parts Scanalyzed . | . . . Part Schematics Acquired . | . . . Parts Damaged . | . . . Bothacking | -11 -10 -9 ------------ Run | Scr Mat Mat Used RIF Installer . | . . . Robots Hacked 3 | . . 3 Non-combat 2 | . . 2 Combat 1 | . . 1 Robot Hacks Applied 6 | . . 6 parse_system 4 | . . 4 no_distress 1 | . . 1 check_alert 1 | . . 1 Relay Couplers Released . | . . . Robots Rewired . | . . . Allies Hacked . | . . . Hacks Repelled . | . . . Allies | -11 -10 -9 -------- Run | Scr Mat Mat Total Allies . | . . . Largest Group . | . . . Highest-Rated Group . | . . . Highest-Rated Ally . | . . . Total Orders . | . . . Ally Attacks . | . . . Total Damage . | . . . Kills . | . . . Allies Corrupted . | . . . Allies Melted . | . . . Intel | -11 -10 -9 ------- Run | Scr Mat Mat Robot Analysis Total . | . . . Derelict Logs Recovered . | . . . Drone Launches . | . . . Drone Recoveries . | . . . Exploration | -11 -10 -9 ------------- Run | Scr Mat Mat Turns Passed 4090 | 64 1032 2994 Spaces Moved 1873 | 49 568 1256 Core 18 | 8 . 10 Treads 1099 | . . 1099 Legs 712 | 41 568 103 Wheels . | . . . Hover 44 | . . 44 Flight . | . . . Fastest Speed 50 | 50 120 150 Average Speed 173 | 108 137 191 Slowest Speed 800 | 120 150 800 Overloaded Moves . | . . . Propulsion Burnouts . | . . . Robots Hopped . | . . . Cave-ins Triggered . | . . . Exploration Rate (%) 55 | 3 84 79 Regions Visited 2 Branch Regions . Pre-discovered Areas . | . . . Known Exits Taken . | . . . Unknown Exits Taken 2 | 1 1 . Scrap Searched . | . . . Spaces Dug 4 | . . 4 Terrain Destroyed 30 | . 24 6 Melee . | . . . Projectile 5 | . . 5 AOE 25 | . 24 1 Terrain Rammed . | . . . Walls Destroyed . | . . . Machines Disabled . | . . . Actions | -11 -10 -9 --------- Run | Scr Mat Mat Total 2270 | 60 690 1520 Wait . | . . . Move 1871 | 48 567 1256 Hop . | . . . Pick Up 53 | 6 21 26 Fast Attach 3 | . 1 2 Attach 21 | 6 3 12 Detach 1 | . 1 . Swap 43 | . 14 29 Drop 36 | . 15 21 Fire 220 | . 66 154 Melee 15 | . . 15 Ram . | . . . Kick 2 | . 2 . Crush 5 | . . 5 Escape Stasis . | . . . Rewire . | . . . Trap . | . . . Miscellaneous . | . . . Route ------- -11/Scrapyard -10/Materials (discovered 3 exits: *Mat x2 / [*Min]) -9/Materials (discovered 4 exits: [*Mat x2] / *Min x2) History --------- Turn | Location | Event 3 | -11/Scrapyard | Discovered new exit (range 15) 65 | -11/Scrapyard | Entered Materials 318 | -10/Materials | Build established: Mutant 374 | -10/Materials | Discovered new exit (range 15) 483 | -10/Materials | Discovered new exit (range 10) 763 | -10/Materials | Core integrity fell below 50% 1029 | -10/Materials | Core integrity fell below 20% 1043 | -10/Materials | Discovered new exit (range 16) 1097 | -10/Materials | Entered another Materials area 1097 | -9/Materials | Evolved 2 slots: Utility x2 1761 | -9/Materials | Discovered new exit (range 15) 2180 | -9/Materials | Identified exit to Mines 2433 | -9/Materials | Discovered new exit (range 11) 2697 | -9/Materials | First assault squad dispatched 3791 | -9/Materials | Core integrity fell below 50% 3802 | -9/Materials | Lost 3 parts (1n1u1w) 4063 | -9/Materials | Core integrity fell below 20% 4091 | -9/Materials | Destroyed by Y-45 Defender with Beam Rifle Last Messages --------------- 03845_ U-05 Engineer builds a Wall. 03850_ K-01 Serf collects debris. 03850_ Acquired 20 matter. 03854_ K-01 Serf collects debris. 03985_ Connecting with Terminal... >>Access(Emergency) No emergency access doors found in local area. 04012_ Cld. Ion Engine destroyed. 04035_ Hvy. Assault Rifle destroyed. 04035_ Connecting with Terminal... >>Enumerate(Squads) Retrieving dispatch records... Found 8 active squads: 4x Security 4x Transport 04044_ Imp. Sensor Array destroyed. 04053_ Imp. EM Shotgun destroyed. 04065_ Hover Unit destroyed. 04075_ Fusion Modulator explodes. 04088_ Imp. Terrain Scanner destroyed. Map ----- +----------------------------------------------------+ | | | | | | | | | | | | | | | | | | | | | | | | | | | | | | | | | | | | | | | | | | | | | ????????????#;;; ;;;;###??#?????#???????????? | | ????????????#; ;#?????????????????????? | | ???????????##; ;#???????#?#???????????? | | ???????????# ; @;#????#??#?????????????? | | ???????????# ; ! ;#?????????????????????? | | ???????????# ; ##?##???#???????#??????? | | ???????????# ;;;; ;;;;#######?####?#?????????? | | ???????????###;;;;; Y +? #?#??????????? | | ????????????# ; ####? #?#??????????? | | ????????????# """ + #### #?#??????????? | | ????????????#?"T ?#u # #?#??????????? | | ??????????????""??# ### T + #???? ???????? | | ????????????????? #u #?# # #????????????? | | ??????????? ???? ?# #?## ##!/ #??# ????????? | | ????????????#?????+ ##+#??# #??/ #??? ????#???? | | ??????????????? # #?????# #? / #????????????? | | ??????????#???????# #?? ??# #??? ###?? ????????? | | ???????????????#?# ??? ? # #??###???????#?????? | | ?????????????????# ??????# #?#????????????????? | | ????????????????? > ?+????# #??????????????????? | | ????????????????## ??????# #??#????#??????????? | | ??????????????????? ????? # #?????????? ???????? | | ???????????####????# ##?? ??# ##?#?????? ????????? | | ???????????# ??# #??????# ###???????? ???????? | | ???????????# """ # ######## ##????????? ???????? | | ???????#???# """ + #?#????????????????? | | ???????????# """ # #####+######?#??????????????? | | ??????????## ??# # ###??#????????????? | +----------------------------------------------------+ Best States ------------- Heat Dissipation 28 Energy Generation 14 Energy Capacity 280 Matter Stores 500 Matter Capacity 500 Sight Range 16 Robot Scan Range 13 Terrain Scan Range 16 Terrain Scan Density 10 Evasion (%) 40 Targeting Accuracy 6 Recoil Reduction 2 Item Schematics ----------------- None Robot Schematics ------------------ None Fabricated ------------ Nothing Alien Tech Used ----------------- None Achievements -------------- Dynamic Key Challenges ------------ None Game ------ Seed BattleStructuralHammer Manual? 0 Play Time 01:03:05 Cumulative 13.1 hours Start 2020.10.27 @ 16:46:21 End 2020.10.27 @ 17:53:44 Sessions 1 Manual Loads 0 Difficulty Rogue Special Mode None Game No. 14 Rogue 14 Adventurer 0 Explorer 0 Win Type - Total 0 Types 0/0/0/0/0/0/0/0/0 Lore% 19 Gallery% 19 Achievement% 17 Wizard Run 0 Options --------- ASCII 0 Keyboard 0 Movement Mouse Keybinds 0 Fullscreen 2 Font 24/Smallcaps Map View 76x50 Tactical HUD 1 Map Filters NONE Filters NONE Steam X RUN: 811cac76-6851-40d5-be1d-fbe81669bb19